[Event "FIDE Zonal 4-2 Open 2023"]
[Site "Dimbroko"]
[Date "2023.03.27"]
[Round "3.13"]
[White "De Gondo, Simplice Armel"]
[Black "KONAN KOUASSI AUGUSTIN"]
[Result "0-1"]
[ECO "B12"]
[WhiteElo "2086"]
[BlackElo "1775"]
[Annotator "TA"]
[PlyCount "106"]
[EventDate "2023.03.25"]
[EventType "swiss"]
[EventCountry "IVO"]
[SourceTitle "playchess.com"]
[Source "ChessBase"]
[SourceQuality "1"]
[TimeControl "40/5400+30:1800+30"]

{[%evp 9,105,50,48,41,57,57,74,52,72,70,60,62,96,104,110,87,92,58,109,20,29,8,50,-54,-50,-31,-39,-85,-67,-77,-89,-85,55,-13,0,-17,51,-16,103,-343,-337,-319,-102,-108,0,0,197,0,0,-454,-452,-413,-300,-231,183,-468,-478,-472,-478,-474,-470,-472,-469,-603,-583,-710,-704,-713,-688,-766,-753,-873,-867,-840,-835,-891,-841,-1150,-1125,-2104,-2070,-29989,-29990,-29990,-29991,-29992,-29993,-29994,-29994,-29995,-29996,-29998,-29997,-29997,-29998,-29998,-29999,-29999]} 1. e4 {[%emt 0:00:02]} e6 {[%emt 0:04:37]} 2. d4 {[%emt 0:00:08]} c6 {[%emt 0:10:27]} 3. Bd3 {[%emt 0:00:59]} d5 {[%emt 0:05:51]} 4. e5 {[%emt 0:00:15]} Nd7 {[%emt 0:00:24]} 5. f4 {[%emt 0:00:01]} c5 {[%emt 0:03:44]} 6. c3 {[%emt 0:02:14] B12: Caro-Kann: Advance Variation.} Ne7 {[%emt 0:00:24]} 7. Nf3 {[%emt 0:00:05] [#]} h6 $146 {[%emt 0:00:38]} ({Predecessor:} 7... c4 8. Bc2 Nb6 9. O-O Ng6 10. Ng5 Be7 11. Qh5 Bxg5 12. fxg5 Bd7 13. b3 Qc7 {1-0 Kabamwanishi,M-Abdikani,M (1517) Olympiad-43 Batumi 2018 (5.88)}) 8. Be3 {[%emt 0:00:53] White is better.} Qb6 {[%emt 0:08:20]} 9. Qc2 {[%emt 0:00:50]} c4 {[%emt 0:00:25]} 10. Be2 {[%emt 0:00:02]} Nf5 {[%emt 0:00:22]} 11. Bf2 {[%emt 0:00:01]} g6 {[%emt 0:04:45]} 12. g4 {[%emt 0:00:03]} Ng7 {[%emt 0:00:28]} 13. Nbd2 {[%emt 0:03:07]} Qc6 {[%emt 0:03:06]} (13... h5 $14) 14. O-O-O {[%emt 0:01:14]} (14. h3 $16) 14... b5 $1 $11 {[%emt 0:00:13][%cal Bb7b5,Bb5b4][%mdl 32]} 15. Nb1 {[%emt 0:01:06]} b4 {[%emt 0:00:39]} (15... a5 $5) 16. h4 {[%emt 0:00:11]} ({White should try} 16. Nh4 $14) 16... a5 $15 {[%emt 0:01:28]} 17. h5 {[%emt 0:04:58]} gxh5 {[%emt 0:00:36]} 18. gxh5 {[%emt 0:01:36]} (18. Rdg1 $15 {deserves consideration.}) 18... Ba6 $17 {[%emt 0:00:31][%cal Ob4b3]} 19. Nfd2 {[%emt 0:03:02]} Rb8 {[%emt 0:03:34][%cal Ob4b3]} 20. Rde1 {[%emt 0:01:46]} a4 {[%emt 0:02:11]} (20... Qb7 $17 21. a3 Bb5) 21. cxb4 {[%emt 0:00:12]} (21. a3 $1 $14) 21... Bxb4 $11 {[%emt 0:00:52][%cal Oa4a3]} 22. a3 {[%emt 0:00:18]} Ba5 {[%emt 0:06:49]} (22... c3 $11 23. bxc3 (23. axb4 cxd2+ 24. Nxd2 Qxc2+ 25. Kxc2 Bxe2 $17) (23. Nxc3 Bxc3 24. Qxc3 Qb6 $11) 23... Be7) 23. Rhg1 {[%emt 0:00:20]} (23. Reg1 $14) 23... Nf5 {[%emt 0:00:34]} (23... c3 $1 $11 {keeps the balance.} 24. Nxc3 (24. Rxg7 $2 Rxb2 $19) 24... Bxe2) 24. Bd1 $2 {[%emt 0:02:02][%mdl 8192]} (24. Bg4 $1 $16 {is necessary to keep the advantage.}) 24... Qb6 $19 {[%emt 0:02:50]} 25. Nf3 {[%emt 0:02:51] [#]} Bxe1 {[%emt 0:00:49]} (25... c3 $1 $19 {[%cal Rc3b2]} 26. Nxc3 Bd3 27. Nxa4 (27. Qd2 $2 Ke7 $19) 27... Qa6) 26. Rxe1 $17 {[%emt 0:00:03]} Ke7 {[%emt 0:02:27]} (26... Rg8 $17 {aiming for ...Rg2.} 27. Qd2 Qxb2+ 28. Qxb2 Rxb2 29. Kxb2 Rg2) 27. Nc3 $11 {[%emt 0:00:11]} Bb5 $2 {[%emt 0:01:15] [#]} (27... Rhg8 $11) 28. Qe2 $2 {[%emt 0:05:20]} (28. Nxa4 $2 {perishes.} Bxa4 29. Qc3 Bxd1 30. Rxd1 Rhg8 $19) ({Worse is} 28. Qxf5 exf5 29. Nxd5+ Kf8 30. Nxb6 Nxb6 $11) (28. Nh4 $1 $18 {[%cal Rh4f5]} Bc6 29. Nxf5+ exf5 30. Qb1 (30. Bf3 Ke6 $14)) 28... Bc6 {[%emt 0:00:40]} 29. Bxa4 $2 {[%emt 0:01:16][%mdl 8192]} (29. Qd2 $11 {and White has nothing to worry.}) 29... Bxa4 $19 {[%emt 0:01:18]} 30. Nxa4 {[%emt 0:00:06]} Qb3 {[%emt 0:00:37]} 31. Nc3 {[%emt 0:00:04]} Nb6 $4 {[%emt 0:01:22][%mdl 8192]} (31... Rhg8 $19 {...Rg4 would be deadly.} 32. Rg1 Rxg1+ 33. Nxg1 Nb6) 32. Qc2 $4 {[%emt 0:00:08][%mdl 8192] Black keeps a firm grip on the game.} (32. Nd2 $18 {was the only winning move.} Qxc3+ 33. bxc3) 32... Na4 {[%emt 0:02:13][%cal Bb6a4,Ba4b2,Bb2d3,Bd3e1,Be1f3,Bf3d4,Bd4b3][%mdl 96] Pin} 33. Qxb3 {[%emt 0:01:50]} Rxb3 {[%emt 0:00:21]} 34. Nd2 {[%emt 0:00:21][%cal Od2b3]} Nxb2 {[%emt 0:01:07] And now ...Nd3+ would win.} 35. Nxb3 {[%emt 0:00:13]} Nd3+ {[%emt 0:00:19]} 36. Kd2 {[%emt 0:02:08][%cal Ob3c5]} Nxe1 {[%emt 0:00:56]} ({Stronger than} 36... Nxf2 37. Nc5 $17) 37. Nc5 {[%emt 0:02:00]} Nf3+ {[%emt 0:00:30]} 38. Kc1 {[%emt 0:00:07]} N3xd4 {[%emt 0:00:24]} 39. a4 {[%emt 0:00:03]} Rc8 {[%emt 0:02:58]} 40. Nb7 {[%emt 0:00:40]} Nb3+ {[%emt 0:00:55]} 41. Kc2 {[%emt 0:33:23]} d4 {[%emt 0:31:13]} 42. Ne4 {[%emt 0:01:45]} Ra8 {[%emt 0:01:48]} 43. Nbd6 {[%emt 0:03:05]} Nxd6 {[%emt 0:04:20]} 44. Bh4+ {[%emt 0:00:20]} Kd7 {[%emt 0:00:33]} 45. Nxd6 {[%emt 0:00:40][%mdl 4096] Endgame KRN-KBN} d3+ {[%emt 0:04:02] Black mates.} 46. Kc3 {[%emt 0:00:29]} d2 {[%emt 0:00:36]} 47. Kc2 {[%emt 0:00:06]} Rxa4 {[%emt 0:01:13]} 48. Nxf7 {[%emt 0:00:05]} Ra2+ {[%emt 0:00:30]} 49. Kc3 {[%emt 0:00:01]} d1=Q {[%emt 0:00:58]} 50. Nxh6 {[%emt 0:00:06]} Qd4+ {[%emt 0:01:53]} 51. Kb4 {[%emt 0:00:05]} c3+ {[%emt 0:00:50]} 52. Kxb3 {[%emt 0:00:04]} Rb2+ {[%emt 0:16:35]} 53. Ka3 {[%emt 0:00:30]} Qb4# {[%emt 0:00:00] Weighted Error Value: White=1.02/Black=0.48} 0-1

[Event "FIDE Zonal 4-2 Open 2023"]
[Site "Dimbroko"]
[Date "2023.03.27"]
[Round "3.14"]
[White "James, Tondo"]
[Black "Koita, Saidou"]
[Result "1-0"]
[ECO "B00"]
[WhiteElo "1867"]
[BlackElo "1569"]
[Annotator "NA RC COMBH"]
[PlyCount "115"]
[EventDate "2023.03.25"]
[EventType "swiss"]
[EventCountry "IVO"]
[SourceTitle "playchess.com"]
[Source "ChessBase"]
[SourceQuality "1"]
[TimeControl "40/5400+30:1800+30"]

1. e4 {[%emt 0:00:03]} Nc6 {[%emt 0:00:45]} 2. d4 {[%emt 0:00:14]} d5 {[%emt 1:30:45]} 3. e5 {[%emt 1:31:43]} a6 {[%emt 0:00:00]} 4. Nf3 {[%emt 0:00:00]} h6 {[%emt 0:00:00]} 5. b3 {[%emt 0:00:00]} g5 {[%emt 0:00:00]} 6. Ba3 {[%emt 0:00:00]} Bf5 {[%emt 0:00:00]} 7. Bd3 {[%emt 0:00:00]} Qd7 {[%emt 0:00:00]} 8. c3 {[%emt 0:00:00]} e6 {[%emt 0:00:00]} 9. Bxf8 {[%emt 0:00:00]} Kxf8 {[%emt 0:00:00]} 10. Na3 {[%emt 0:00:00]} Nge7 {[%emt 0:04:00]} 11. Nc2 {[%emt 0:04:00]} Ng6 {[%emt 0:00:00]} 12. g3 {[%emt 0:00:00]} Nce7 {[%emt 0:00:00]} 13. Ne3 {[%emt 0:00:00]} b6 {[%emt 0:00:00]} 14. O-O {[%emt 0:00:00]} Bh3 {[%emt 0:00:00]} 15. Re1 {[%emt 0:00:00]} Kg7 {[%emt 0:00:00]} 16. Qc2 {[%emt 0:00:00]} Rhc8 {[%emt 0:00:00]} 17. Qe2 {[%emt 0:00:00]} c5 {[%emt 0:00:00]} 18. Bxa6 {[%emt 0:00:00]} Rc7 {[%emt 0:04:00]} 19. Bb5 {[%emt 0:04:00]} Qc8 {[%emt 0:00:00]} 20. Bd3 {[%emt 0:00:00]} Ra3 {[%emt 0:00:00]} 21. Qb2 {[%emt 0:00:00]} Rca7 {[%emt 0:00:00]} 22. Kh1 {[%emt 0:00:00]} Qc6 {[%emt 0:00:00]} 23. Ng1 {[%emt 0:00:00]} Bf5 {[%emt 0:02:30]} 24. Bxf5 {[%emt 0:02:30]} exf5 {[%emt 0:00:00]} 25. Ne2 {[%emt 0:00:00]} Nxe5 {[%emt 0:00:00]} 26. dxe5 {[%emt 0:00:00]} d4+ {[%emt 0:00:00]} 27. Ng2 {[%emt 0:00:00]} d3 {[%emt 0:00:00]} 28. Nc1 {[%emt 0:00:00]} Qf3 {[%emt 0:00:00]} 29. c4 {[%emt 0:00:00]} Nc6 {[%emt 0:00:00]} 30. e6+ {[%emt 0:00:00]} f6 {[%emt 0:00:00]} 31. Qd2 {[%emt 0:00:00]} Ne5 {[%emt 0:00:00]} 32. Re3 {[%emt 0:00:00]} Qh5 {[%emt 0:00:00]} 33. Rxe5 {[%emt 0:00:00]} fxe5 {[%emt 0:00:00]} 34. Nxd3 {[%emt 0:00:00]} Qe8 {[%emt 0:00:00]} 35. Nxe5 {[%emt 0:00:00]} Qxe6 {[%emt 0:00:00]} 36. f4 {[%emt 0:00:00]} g4 {[%emt 0:00:00]} 37. Qb2 {[%emt 0:00:00]} Kg8 {[%emt 0:00:00]} 38. Ne3 {[%emt 0:00:00]} R3a6 {[%emt 0:00:00]} 39. a4 {[%emt 0:00:00]} Rd7 {[%emt 0:00:00]} 40. Qc2 {[%emt 0:00:00]} Rf7 {[%emt 0:00:00]} 41. Rd1 {[%emt 0:00:00]} Raa7 {[%emt 0:00:00]} 42. Rd8+ {[%emt 0:00:00]} Rf8 {[%emt 0:00:00]} 43. Rxf8+ {[%emt 0:00:00]} Kxf8 {[%emt 0:00:00]} 44. Qxf5+ {[%emt 0:00:00]} Qxf5 {[%emt 0:00:00]} 45. Nxf5 {[%emt 0:00:00]} h5 {[%emt 0:00:00]} 46. Kg2 {[%emt 0:03:09]} Ra8 {[%emt 0:00:00]} 47. Kf2 {[%emt 0:00:35]} Kg8 {[%emt 0:00:00]} 48. Ke3 {[%emt 0:03:50]} Kh7 {[%emt 0:00:00]} 49. Ne7 {[%emt 0:00:40]} Kh6 {[%emt 0:00:00]} 50. Ke4 {[%emt 0:02:07]} Re8 {[%emt 0:00:00]} 51. Nf5+ {[%emt 0:00:17]} Kh7 {[%emt 0:00:00]} 52. Kd5 {[%emt 0:00:43]} Rd8+ {[%emt 0:00:00]} 53. Nd6 {[%emt 0:00:27]} Rf8 {[%emt 0:00:00]} 54. Nd7 {[%emt 0:01:48]} Rd8 {[%emt 0:00:00]} 55. Ke6 {[%emt 0:01:57]} Ra8 {[%emt 0:00:33]} 56. f5 {[%emt 0:00:06]} Kh6 {[%emt 0:00:40]} 57. f6 {[%emt 0:01:55]} Kg5 {[%emt 0:01:10]} 58. f7 {[%emt 0:00:34]} 1-0

[Event "FIDE Zonal 4-2 Open 2023"]
[Site "Dimbroko"]
[Date "2023.03.27"]
[Round "4.1"]
[White "Thomas, Saah"]
[Black "Ortega Amarelle, Mariano"]
[Result "0-1"]
[ECO "B21"]
[WhiteElo "1916"]
[BlackElo "2472"]
[Annotator "TA"]
[PlyCount "118"]
[EventDate "2023.03.25"]
[EventType "swiss"]
[EventCountry "IVO"]
[SourceTitle "playchess.com"]
[Source "ChessBase"]
[SourceQuality "1"]
[TimeControl "40/5400+30:1800+30"]

{[%evp 17,118,-34,-9,-30,-10,-33,-26,-81,-89,-160,-164,-163,-151,-574,-614,-589,-612,-601,-601,-566,-400,-403,-383,-397,-377,-350,-376,-325,-290,-420,-420,-389,-292,-522,-521,-508,-506,-536,-503,-623,-600,-590,-586,-766,-741,-694,-466,-658,-648,-892,-875,-1056,-1056,-963,-692,-1489,-1512,-1799,-1533,-1172,-1013,-1022,-217,-1014,-974,-996,-954,-1014,-997,-997,-979,-832,-759,-29967,-29968,-29968,-29969,-29969,-29968,-29967,-29965,-29971,-8,-8,-8,-8,-8,-8,-8,-8,-8,-8,-8,-29983,-29984,-29984,-29985,-29985,-29986,-29986,-29987,-29989,-5089]} 1. e4 {[%emt 0:00:03]} c5 {[%emt 0:00:08]} 2. f4 {[%emt 0:00:16]} d5 {[%emt 0:00:14]} 3. exd5 {[%emt 0:00:11]} Nf6 {[%emt 0:00:33]} 4. Bb5+ {[%emt 0:01:29]} Bd7 {[%emt 0:00:07]} 5. Bxd7+ {[%emt 0:00:11]} Qxd7 {[%emt 0:00:06]} 6. c4 {[%emt 0:00:32]} e6 {[%emt 0:00:05]} 7. Qe2 {[%emt 0:00:53]} Bd6 {[%emt 0:07:02]} 8. dxe6 {[%emt 0:00:48]} fxe6 {[%emt 0:01:53]} 9. d3 {[%emt 0:00:13]} O-O {[%emt 0:04:47] Threatening ...Nc6.} 10. Nf3 {[%emt 0:00:09] B21: Sicilian: 2 f4 and Morra Gambit.} Nc6 {[%emt 0:00:15] next ...Rae8 is good for Black.} 11. O-O {[%emt 0:00:32]} e5 {[%emt 0:08:27] is the legacy move (11...Rae8).} 12. fxe5 {[%emt 0:00:28]} (12. f5 $1 $11) 12... Rae8 $1 $17 {[%emt 0:00:50] [#]} (12... Bxe5 $6 13. Nxe5 Qd4+ 14. Be3 Qxe5 15. Nc3 $11) 13. Bf4 $146 {[%emt 0:11:10]} (13. Nc3 $142) ({Predecessor:} 13. Nc3 Nxe5 {0-1 Wloka,F-Kappes,D DESC PT2009 Rd03 email 2011 (1)}) 13... Ng4 $1 {[%emt 0:26:30][%csl LRe5,LRf4]} 14. Qd2 {[%emt 0:14:55]} Bxe5 {[%emt 0:16:58]} (14... Ncxe5 15. Nc3 $17) 15. Nxe5 {[%emt 0:09:22]} (15. Bxe5 $17 Ncxe5 16. Nc3) 15... Qd4+ $19 {[%emt 0:08:48]} (15... Ngxe5 16. Nc3 $15) (15... Rxe5 16. Bxe5 Rxf1+ 17. Kxf1 $11) 16. Kh1 {[%emt 0:00:42]} Ncxe5 {[%emt 0:00:10][%cal Bc6e5,Be5d3,Bd3f2][%mdl 32]} (16... Ngxe5 17. Na3 $17) 17. Nc3 {[%emt 0:00:19]} Nxd3 {[%emt 0:00:34] Excellent horsemanship.} 18. g3 {[%emt 0:05:34]} Rxf4 {[%emt 0:02:33]} 19. Rxf4 {[%emt 0:01:08]} Ndf2+ {[%emt 0:00:13][%mdl 64] Discovered Attack} (19... Nxf4 20. Qxf4 Rf8 21. Qxd4 cxd4 22. Ne4 $17) 20. Qxf2 {[%emt 0:00:09]} Nxf2+ {[%emt 0:00:30]} 21. Kg2 {[%emt 0:00:18]} Ne4 {[%emt 0:01:54] Strongly threatening ...Qd2+.} 22. Re1 {[%emt 0:00:11]} Qxc4 {[%emt 0:03:31][%cal Ob7b5]} (22... Qd2+ $2 23. Re2 Qd3 24. Rfxe4 Rxe4 25. Rxe4 $19) 23. Nxe4 {[%emt 0:01:43]} (23. Rexe4 $142 Rxe4 24. Rxe4) 23... Qd5 {[%emt 0:00:22]} (23... Qxa2 24. Nc3 (24. Nf6+ gxf6 25. Rxe8+ Kf7 $17) 24... Qxb2+ 25. Rf2 Rxe1 26. Rxb2 $14) 24. h4 {[%emt 0:01:37]} Rf8 {[%emt 0:01:33]} ({Not} 24... Qxa2 25. Nc3 (25. Nf6+ gxf6 26. Rxe8+ Kf7 $17) 25... Qxb2+ 26. Rf2 $11) 25. a3 $2 {[%emt 0:02:16]} (25. Rxf8+ Kxf8 26. a3) 25... Rxf4 {[%emt 0:02:11]} 26. gxf4 {[%emt 0:00:01][%mdl 4096] Endgame KQ-KRN} h6 {[%emt 0:00:21]} 27. Re2 {[%emt 0:01:07]} b5 {[%emt 0:00:10]} 28. Kf3 {[%emt 0:00:33]} Qh5+ {[%emt 0:02:40]} 29. Ke3 {[%emt 0:00:11]} Qxh4 {[%emt 0:00:35]} 30. Nxc5 {[%emt 0:01:14]} Qg3+ {[%emt 0:00:13]} 31. Ke4 {[%emt 0:00:11]} h5 {[%emt 0:00:11]} 32. Ne6 {[%emt 0:01:33]} (32. Nd3 $142) 32... Qg4 {[%emt 0:00:59][%csl LRe2,LRe6]} 33. Nd4 {[%emt 0:00:26]} g5 {[%emt 0:02:39]} 34. Rf2 {[%emt 0:00:06]} h4 {[%emt 0:00:16]} 35. Nf5 {[%emt 0:00:32]} Kh7 {[%emt 0:01:49] Hoping for ...h3.} 36. Ke5 {[%emt 0:00:05]} h3 {[%emt 0:03:34][%cal Og4g2] White must now prevent ...Qg2!} 37. fxg5 {[%emt 0:01:04]} Qxg5 {[%emt 0:01:07]} 38. Rc2 {[%emt 0:03:52]} Qd8 {[%emt 0:01:06]} 39. Rc3 {[%emt 0:01:24]} Qe8+ $2 {[%emt 0:01:05]} (39... h2 40. Ng3 Qg5+ 41. Ke4 Qxg3 {[%mdl 64] Remove Defender, Promotion} 42. Rxg3 h1=Q+ 43. Rf3 Qb1+ 44. Rd3 Qxb2) 40. Kf4 $2 {[%emt 0:00:39]} (40. Kf6 Qd8+ 41. Kf7 Qg8+ 42. Kf6 Qg6+ 43. Ke5 Qe8+ 44. Kf6 Qf8+ 45. Kg5) 40... Qb8+ {[%emt 0:00:45]} 41. Kg4 {[%emt 0:32:49]} h2 {[%emt 0:31:31]} 42. Rh3+ {[%emt 0:00:03]} Kg8 {[%emt 0:00:00]} 43. Rh5 {[%emt 0:00:00]} Qc7 {[%emt 0:00:00]} 44. Ng3 {[%emt 0:00:00]} Qc2 {[%emt 0:00:00]} 45. b4 {[%emt 0:00:00]} Qd1+ {[%emt 0:00:00]} 46. Kg5 {[%emt 0:00:00]} Qf3 {[%emt 0:00:00]} 47. Kh4 {[%emt 0:00:00]} h1=Q+ {[%emt 0:00:00]} 48. Nxh1 {[%emt 0:00:00]} Qxh1+ {[%emt 0:00:00]} 49. Kg4 {[%emt 0:00:00] [#]} Qxh5+ $2 {[%emt 0:00:00]} 50. Kxh5 $11 {[%emt 0:00:00] KPP-KPP} Kf7 {[%emt 0:00:00]} 51. Kg5 {[%emt 0:00:00]} Ke6 {[%emt 0:00:00]} 52. Kf4 {[%emt 0:00:00]} Kd5 {[%emt 0:00:00]} 53. Ke3 $1 {[%emt 0:00:00]} Kc4 {[%emt 0:00:00] ( -> ...Kb3)} 54. a4 $1 {[%emt 0:00:00]} a6 {[%emt 0:00:00][%cal Ba7a6,Ba6b5,Bb5b4,Bb4b3][%mdl 32]} (54... bxa4 $5 55. Kd2 $8 Kd4 $11) 55. axb5 $1 {[%emt 0:00:00]} axb5 {[%emt 0:00:00] Black mates.} ({But not} 55... Kxb4 56. bxa6 Kc4 57. a7 Kd5 58. a8=Q+ (58. a8=B+ Ke6 $11) 58... Kd6 59. Qd8+ Ke5 60. Qd7) 56. Kd2 {[%emt 0:00:00]} Kxb4 {[%emt 0:00:00]} 57. Kc2 {[%emt 0:00:00] [#]} Ka3 $1 {[%emt 0:00:00]} 58. Kb1 {[%emt 0:00:00]} b4 {[%emt 0:00:00]} 59. Ka1 {[%emt 0:00:00] [#]} b3 $1 {[%emt 0:00:00] Weighted Error Value: White=0.86/Black=0.42} 0-1

[Event "FIDE Zonal 4-2 Open 2023"]
[Site "Dimbroko"]
[Date "2023.03.27"]
[Round "4.2"]
[White "Abdulraheem Abdulrahman Akinto"]
[Black "Foday W. Kondoh"]
[Result "1-0"]
[ECO "A40"]
[WhiteElo "2302"]
[BlackElo "1727"]
[Annotator "TA"]
[PlyCount "127"]
[EventDate "2023.03.25"]
[EventType "swiss"]
[EventCountry "IVO"]
[SourceTitle "playchess.com"]
[Source "ChessBase"]
[SourceQuality "1"]
[TimeControl "40/5400+30:1800+30"]

{[%evp 9,127,0,0,-33,-13,-10,41,35,191,0,-18,-23,-21,-21,-24,-34,-22,-31,-21,-35,-31,-20,-22,-16,-15,-31,0,8,15,11,11,0,0,0,0,0,0,-20,0,0,0,0,0,0,0,0,0,0,22,-106,17,25,16,7,9,9,11,4,7,4,6,0,61,31,31,34,59,53,64,64,81,56,62,63,104,79,124,97,102,84,84,71,107,100,136,100,115,96,164,126,139,131,671,486,698,595,532,516,836,712,818,784,686,683,12630,9091,6424,5617,2822,760,1653,1397,1220,1145,1445,1375,29975,29976,29983,29984]} 1. d4 {[%emt 0:00:04][%cal Bd2d4,Bd4d5][%mdl 32]} Nc6 {[%emt 0:01:20]} 2. d5 {[%emt 0:01:11]} Ne5 {[%emt 0:00:40]} 3. Nf3 {[%emt 0:00:32]} Nxf3+ {[%emt 0:00:54]} 4. exf3 {[%emt 0:00:24]} c6 {[%emt 0:00:43] [#]} 5. Nc3 $146 {[%emt 1:30:49]} ({Predecessor:} 5. dxc6 bxc6 6. Bd3 g6 7. O-O Nf6 8. Nc3 Bg7 9. Bg5 O-O 10. Qd2 Rb8 11. Rab1 {0-1 Yilmaz,K (1637)-Nielsen,J (1802) Politiken Cup 36th 2014 (8)}) 5... Nf6 {[%emt 0:00:18]} 6. Bc4 {[%emt 1:29:45] A40: Unusual replies to 1 d4.} b5 {[%emt 0:03:34]} 7. Bb3 {[%emt 0:02:08]} b4 {[%emt 0:00:29]} (7... Qc7 $11) 8. Ne4 $14 {[%emt 0:05:06] White is slightly better.} Ba6 $2 {[%emt 1:26:32]} (8... e6 $14) 9. Nc5 $2 {[%emt 0:03:16]} (9. dxc6 $18 Bb5 10. Nxf6+ exf6 11. cxd7+ Qxd7 12. Qxd7+ Bxd7 13. Be3) 9... Bb5 $11 {[%emt 0:10:50]} 10. a4 {[%emt 0:01:39]} bxa3 {[%emt 1:11:40]} 11. dxc6 {[%emt 0:06:23]} (11. Rxa3 cxd5 12. Bxd5 e6 13. Bxa8 Bxc5 $15) 11... Bxc6 {[%emt 0:03:32] ...Qa5+ would be deadly.} (11... axb2 {simplifies} 12. Bxb2 Bxc6 13. Nd3 e6) 12. O-O {[%emt 0:00:44]} (12. Nd3 {simplifies} axb2 13. Bxb2 e6 14. O-O) 12... e6 {[%emt 0:00:46]} 13. Nd3 {[%emt 1:12:56]} axb2 {[%emt 1:08:32]} 14. Bxb2 {[%emt 0:00:02]} Be7 {[%emt 0:00:18]} 15. Ne5 {[%emt 0:01:09]} O-O {[%emt 0:06:14]} 16. Nxc6 {[%emt 0:05:48]} dxc6 {[%emt 0:00:23]} 17. Ra6 {[%emt 0:01:03]} Qc8 {[%emt 0:05:12]} 18. Qa1 {[%emt 0:03:55]} Qb7 {[%emt 0:05:21]} 19. Rb1 {[%emt 0:00:30][%mdl 1024] White has compensation.} Rfd8 {[%emt 0:07:04]} 20. Bc4 {[%emt 0:15:08] Hoping for Bxf6.} Rdb8 {[%emt 0:07:07]} 21. Bb3 {[%emt 0:04:35] A strong pair of Bishops.} Ne8 {[%emt 0:04:29]} 22. Qa4 {[%emt 0:44:34]} Rc8 {[%emt 0:04:33]} 23. Rd1 {[%emt 0:11:44]} Qb5 {[%emt 0:14:01]} 24. Rxa7 {[%emt 0:02:46]} Rxa7 {[%emt 0:04:24]} 25. Qxa7 {[%emt 0:00:01]} Bc5 {[%emt 0:00:30]} (25... Bf6 {simplifies} 26. Bxf6 Nxf6 27. Rd3 h5) 26. Qd7 {[%emt 0:27:51]} Qe2 {[%emt 0:02:50]} 27. Rf1 {[%emt 0:03:20] Active counter play!} Nd6 {[%emt 0:03:46]} 28. Bc1 {[%emt 0:23:47]} Qa6 {[%emt 0:02:15]} 29. Bb2 {[%emt 0:03:59] [#]} (29. Be3 $11 Bxe3 30. fxe3) 29... Qb7 {[%emt 0:07:19]} ({Better is} 29... Qb6 $1 $17 {Strongly threatening ...Rd8.} 30. Bd4 Bxd4 31. Qxd6 Bxf2+ 32. Kh1 (32. Rxf2 $2 {too greedy.} Rd8 $19) 32... Rd8) 30. Qxb7 {[%emt 0:01:20]} Nxb7 {[%emt 0:00:02]} 31. Rd1 {[%emt 0:01:37]} Rd8 {[%emt 0:00:54]} 32. Rxd8+ {[%emt 0:00:21]} Nxd8 {[%emt 0:00:02][%mdl 4096] Endgame KBB-KBN} 33. Be5 {[%emt 0:01:05]} Bb6 {[%emt 0:02:55]} 34. Bd6 {[%emt 0:00:52]} f6 {[%emt 0:00:40]} 35. g4 {[%emt 0:12:11]} g5 {[%emt 0:01:17]} (35... Kf7 $11) 36. Kg2 {[%emt 0:02:06]} (36. f4 $5 {[%cal Rf4f5]}) 36... Kf7 {[%emt 0:00:23]} 37. f4 {[%emt 0:01:52]} gxf4 {[%emt 0:00:01]} 38. Bxf4 {[%emt 0:00:20]} Nb7 {[%emt 0:00:47]} 39. Ba4 {[%emt 0:00:34]} Nd8 {[%emt 0:00:24]} 40. h3 {[%emt 0:02:53]} e5 {[%emt 0:01:45]} 41. Bd2 {[%emt 0:31:29]} Kg7 {[%emt 0:32:28]} 42. Kg3 {[%emt 0:03:52]} Kg6 {[%emt 0:01:18]} 43. c3 {[%emt 0:00:00]} Bc7 {[%emt 0:00:00]} 44. Bc2+ {[%emt 0:00:00]} Kg7 {[%emt 0:00:00]} 45. Be4 {[%emt 0:00:00]} c5 {[%emt 0:00:00]} 46. Bd5 {[%emt 0:02:31]} Kg6 {[%emt 0:00:00]} 47. Kf3 {[%emt 0:00:00]} Nf7 {[%emt 0:00:00]} 48. h4 {[%emt 0:00:00][%cal Bh3h4,Bh4h5,Bh5h6][%mdl 32]} Nd6 {[%emt 0:00:00] [#]} (48... Ba5 $16 49. Ke2 Bd8) 49. h5+ $1 $18 {[%emt 0:00:00]} Kg7 {[%emt 0:00:00]} 50. h6+ {[%emt 0:00:00]} Kh8 $2 {[%emt 0:00:00][%mdl 8192]} (50... Kf8 $16 51. Be3 Bb6) 51. Be3 {[%emt 0:00:00]} Bb6 {[%emt 0:00:00]} (51... e4+ $142 52. Bxe4 Nf7 53. Bxc5 Ne5+ 54. Ke2 Nxg4) 52. Ke2 {[%emt 0:00:00]} Nb5 {[%emt 0:00:00]} 53. Kd3 {[%emt 0:00:00]} Nd6 {[%emt 0:00:00]} (53... e4+ $142 54. Bxe4 (54. Kxe4 $2 {perishes.} Nxc3+ 55. Kd3 Nxd5 $19) 54... Nd6) 54. Kc2 {[%emt 0:00:00]} Nc8 {[%emt 0:00:00]} 55. Kb3 {[%emt 0:00:00]} Ba7 {[%emt 0:00:00]} 56. Ka3 {[%emt 0:00:00]} Nb6 {[%emt 0:00:00]} 57. Be6 {[%emt 0:00:00]} ({Not} 57. Bxc5 Nxd5 58. Bxa7 Nxc3 $11) 57... Na8 {[%emt 0:00:00]} 58. Ka4 {[%emt 0:00:00]} Nc7 {[%emt 0:00:00]} 59. Bc4 {[%emt 0:00:00]} (59. Bf7 $142 Bb6 60. f3) 59... Bb6 {[%emt 0:00:00]} 60. f3 {[%emt 0:00:08]} Ne8 {[%emt 0:00:00]} 61. Bd5 {[%emt 0:01:17]} Nd6 {[%emt 0:00:45]} 62. c4 {[%emt 0:00:32]} Nc8 {[%emt 0:04:58]} 63. Kb5 {[%emt 0:09:04]} Ba7 {[%emt 0:02:44]} 64. Ka6 {[%emt 0:00:55] Weighted Error Value: White=0.22 (precise) /Black=0.50} 1-0